[Event "44th Chess Olympiad Open 2022"]
[Site "Chennai"]
[Date "2022.08.05"]
[Round "7.54"]
[White "Egesa emmanuel"]
[Black "Abdulkadir Mohamed Warsame"]
[Result "1-0"]
[WhiteElo "2152"]
[BlackElo "1820"]
[Annotator "ChessBase"]
[PlyCount "91"]
[EventDate "2022.??.??"]
[TimeControl "60"]

1. e4 {[%emt 0:00:10]} c5 {[%emt 0:02:32]} 2. Nf3 {[%emt 0:00:07]} e6 {[%emt 0:
00:00]} 3. d4 {[%emt 0:00:02]} cxd4 {[%emt 0:00:04]} 4. Nxd4 {[%emt 0:00:03]}
Nc6 {[%emt 0:01:13]} 5. Nc3 {[%emt 0:00:05]} Qc7 {[%emt 0:00:08]} 6. Qd3 {
[%emt 0:00:07]} Nf6 {[%emt 0:01:35]} 7. Ndb5 {[%emt 0:04:39]} Qb8 {[%emt 0:00:
00]} 8. Qg3 {[%emt 0:00:08]} d6 {[%emt 0:00:14]} 9. Be3 {[%emt 0:03:07]} a6 {
[%emt 0:08:23]} 10. Nd4 {[%emt 0:00:32]} h5 {[%emt 0:01:33]} 11. f4 {[%emt 0:
00:00]} h4 {[%emt 0:19:45]} 12. Qf3 {[%emt 0:00:35]} Nxd4 {[%emt 0:11:13]} 13.
Bxd4 {[%emt 0:00:07]} e5 {[%emt 0:00:22]} 14. Bb6 {[%emt 0:07:13]} Bg4 {
[%emt 0:20:45]} 15. Qf2 {[%emt 0:01:28]} exf4 {[%emt 0:06:13]} 16. Qxf4 {
[%emt 0:01:00]} Qc8 {[%emt 0:03:44]} 17. h3 {[%emt 0:03:20]} Be6 {[%emt 0:00:
00]} 18. O-O-O {[%emt 0:00:58]} Be7 {[%emt 0:00:11]} 19. Nd5 {[%emt 0:05:43]}
Bxd5 {[%emt 0:05:29]} 20. exd5 {[%emt 0:01:20]} Rh5 {[%emt 0:02:41]} 21. Be2 {
[%emt 0:08:01]} Rxd5 {[%emt 0:01:44]} 22. Qxh4 {[%emt 0:01:24]} Rxd1+ {[%emt 0:
00:00]} 23. Rxd1 {[%emt 0:05:07]} Qc6 {[%emt 0:00:59]} 24. Qh8+ {[%emt 0:08:33]
} Bf8 {[%emt 0:00:01]} 25. Bd4 {[%emt 0:00:06]} Qe4 {[%emt 0:02:11]} 26. Bxf6 {
[%emt 0:03:29]} Qf4+ {[%emt 0:00:01]} 27. Kb1 {[%emt 0:00:11]} Qxf6 {[%emt 0:
00:00]} 28. Bg4 {[%emt 0:00:13]} Qe7 {[%emt 0:02:24]} 29. Qh5 {[%emt 0:00:21]}
g6 {[%emt 0:00:52]} 30. Qa5 {[%emt 0:00:04]} Bg7 {[%emt 0:00:16]} 31. Qb6 {
[%emt 0:03:29]} Rd8 {[%emt 0:00:54]} 32. Bf3 {[%emt 0:00:57]} Rd7 {[%emt 0:00:
00]} 33. c4 {[%emt 0:01:03]} Be5 {[%emt 0:00:30]} 34. Bd5 {[%emt 0:00:13]} Kf8
{[%emt 0:00:50]} 35. Rf1 {[%emt 0:00:13]} Bf6 {[%emt 0:00:52]} 36. g4 {[%emt 0:
00:00]} Qd8 {[%emt 0:00:56]} 37. Qe3 {[%emt 0:03:02]} Kg7 {[%emt 0:00:01]} 38.
Rf3 {[%emt 0:00:30]} b6 {[%emt 0:00:50]} 39. Qf2 {[%emt 0:00:37]} Be5 {[%emt 0:
00:00]} 40. Bxf7 {[%emt 0:01:09]} Qc7 {[%emt 0:00:28]} 41. Be6 {[%emt 0:32:42]}
Re7 {[%emt 0:30:00]} 42. Bd5 {[%emt 0:00:08]} Qc5 {[%emt 0:01:00]} 43. Qh4 {
[%emt 0:02:55]} Qg1+ {[%emt 0:00:00]} 44. Kc2 {[%emt 0:00:00]} Rc7 {[%emt 0:00:
00]} 45. g5 {[%emt 0:00:00]} Qg2+ {[%emt 0:00:00]} 46. Rf2 {[%emt 0:00:00]} 1-0

[Event "44th Chess Olympiad Open 2022"]
[Site "Chennai"]
[Date "2022.08.05"]
[Round "7.55"]
[White "Nicholas Arvin"]
[Black "Stark, John"]
[Result "0-1"]
[WhiteElo "1744"]
[BlackElo "2028"]
[Annotator "NA"]
[PlyCount "70"]
[EventDate "2022.??.??"]
[TimeControl "60"]

1. d4 {[%emt 0:00:02]} Nf6 {[%emt 0:00:10]} 2. c4 {[%emt 0:00:25]} e6 {[%emt 0:
00:00]} 3. Nc3 {[%emt 0:00:05]} Bb4 {[%emt 0:00:06]} 4. Bg5 {[%emt 0:00:31]} c5
{[%emt 0:01:57]} 5. Nf3 {[%emt 0:03:47]} cxd4 {[%emt 0:02:39]} 6. Nxd4 {
[%emt 0:01:44]} Qb6 {[%emt 0:02:51]} 7. Bxf6 {[%emt 0:18:51]} Bxc3+ {[%emt 0:
00:00]} 8. bxc3 {[%emt 0:00:09]} gxf6 {[%emt 0:00:15]} 9. Rb1 {[%emt 0:02:56]}
Qc5 {[%emt 0:02:50]} 10. e3 {[%emt 0:09:04]} a6 {[%emt 0:15:06]} 11. Qf3 {
[%emt 0:03:28]} Ke7 {[%emt 0:01:45]} 12. Bd3 {[%emt 0:06:43]} Nc6 {[%emt 0:00:
00]} 13. Nb3 {[%emt 0:01:55]} Qd6 {[%emt 0:07:48]} 14. Rd1 {[%emt 0:03:48]} Ne5
{[%emt 0:02:18]} 15. Qe2 {[%emt 0:00:21]} Qc7 {[%emt 0:02:01]} 16. Nd2 {
[%emt 0:02:41]} b6 {[%emt 0:01:56]} 17. Be4 {[%emt 0:11:16]} Bb7 {[%emt 0:00:
00]} 18. Bxb7 {[%emt 0:00:22]} Qxb7 {[%emt 0:00:02]} 19. f4 {[%emt 0:00:34]}
Ng6 {[%emt 0:06:10]} 20. Rg1 {[%emt 0:12:04]} Rac8 {[%emt 0:02:24]} 21. g3 {
[%emt 0:02:18]} Rc5 {[%emt 0:03:19]} 22. Nb3 {[%emt 0:02:15]} Rc7 {[%emt 0:00:
00]} 23. Rd4 {[%emt 0:03:55]} Rhc8 {[%emt 0:02:00]} 24. Kf2 {[%emt 0:00:50]} a5
{[%emt 0:05:30]} 25. Rgd1 {[%emt 0:01:35]} Rg8 {[%emt 0:04:40]} 26. e4 {
[%emt 0:01:10]} e5 {[%emt 0:05:44]} 27. Rd5 {[%emt 0:04:11]} exf4 {[%emt 0:00:
00]} 28. g4 {[%emt 0:01:00]} f3 {[%emt 0:00:58]} 29. Qd2 {[%emt 0:02:23]} Ne5 {
[%emt 0:07:31]} 30. Qf4 {[%emt 0:01:55]} Nxg4+ {[%emt 0:01:19]} 31. Kf1 {
[%emt 0:00:54]} Qc6 {[%emt 0:01:23]} 32. c5 {[%emt 0:01:33]} Qb5+ {[%emt 0:00:
00]} 33. R1d3 {[%emt 0:00:18]} Ne5 {[%emt 0:01:17]} 34. Rd6 {[%emt 0:01:40]}
Rg6 {[%emt 0:03:09]} 35. Rxf6 {[%emt 0:00:39]} Qxd3+ {[%emt 0:00:06]} 0-1

[Event "44th Chess Olympiad Open 2022"]
[Site "Chennai"]
[Date "2022.08.05"]
[Round "7.56"]
[White "Salim Mohammed, Salim Al Amri"]
[Black "Dias, Vanderson"]
[Result "0-1"]
[WhiteElo "1917"]
[BlackElo "2139"]
[Annotator "NA RC"]
[PlyCount "134"]
[EventDate "2022.??.??"]
[TimeControl "60"]

1. e4 {[%emt 0:00:03]} c6 {[%emt 0:04:06]} 2. Nf3 {[%emt 0:00:09]} d5 {[%emt 0:
00:00]} 3. d3 {[%emt 0:00:10]} dxe4 {[%emt 0:03:05]} 4. Ng5 {[%emt 0:01:17]}
Nf6 {[%emt 0:02:50]} 5. Nc3 {[%emt 0:00:20]} exd3 {[%emt 0:12:37]} 6. Bxd3 {
[%emt 0:00:18]} Qc7 {[%emt 0:00:24]} 7. O-O {[%emt 0:00:54]} h6 {[%emt 0:11:20]
} 8. Nge4 {[%emt 0:00:02]} Nxe4 {[%emt 0:15:01]} 9. Nxe4 {[%emt 0:00:03]} g6 {
[%emt 0:01:08]} 10. Be3 {[%emt 0:12:51]} Bg7 {[%emt 0:00:13]} 11. Qd2 {[%emt 0:
00:00]} Bf5 {[%emt 0:06:15]} 12. Rfe1 {[%emt 0:05:47]} Bxe4 {[%emt 0:03:27]}
13. Bxe4 {[%emt 0:00:02]} Nd7 {[%emt 0:02:18]} 14. Rad1 {[%emt 0:00:48]} Rd8 {
[%emt 0:08:36]} 15. Qc1 {[%emt 0:06:52]} h5 {[%emt 0:05:25]} 16. Bg5 {[%emt 0:
00:00]} Nf6 {[%emt 0:01:47]} 17. Bd3 {[%emt 0:01:05]} O-O {[%emt 0:00:40]} 18.
h3 {[%emt 0:05:14]} Rfe8 {[%emt 0:01:29]} 19. c4 {[%emt 0:03:45]} Nh7 {[%emt 0:
00:00]} 20. Be3 {[%emt 0:00:27]} c5 {[%emt 0:01:54]} 21. Be4 {[%emt 0:02:46]}
b6 {[%emt 0:02:16]} 22. Bf4 {[%emt 0:02:43]} e5 {[%emt 0:01:51]} 23. Bg3 {
[%emt 0:01:34]} Rxd1 {[%emt 0:00:34]} 24. Rxd1 {[%emt 0:00:07]} Rd8 {[%emt 0:
00:00]} 25. Bh4 {[%emt 0:00:24]} Rxd1+ {[%emt 0:00:47]} 26. Qxd1 {[%emt 0:00:
00]} Bf6 {[%emt 0:00:50]} 27. Bg3 {[%emt 0:00:38]} Kg7 {[%emt 0:02:27]} 28. Qd2
{[%emt 0:03:37]} Qe7 {[%emt 0:01:07]} 29. f3 {[%emt 0:02:03]} Ng5 {[%emt 0:00:
00]} 30. Bd5 {[%emt 0:00:22]} e4 {[%emt 0:01:31]} 31. h4 {[%emt 0:01:24]} e3 {
[%emt 0:00:17]} 32. Qe2 {[%emt 0:00:47]} Nh7 {[%emt 0:01:00]} 33. Bf4 {[%emt 0:
00:00]} Bxh4 {[%emt 0:01:45]} 34. Bxe3 {[%emt 0:00:16]} Bf6 {[%emt 0:02:18]}
35. Qd2 {[%emt 0:00:52]} Bg5 {[%emt 0:00:57]} 36. f4 {[%emt 0:00:26]} Bf6 {
[%emt 0:00:13]} 37. Qf2 {[%emt 0:00:42]} Nf8 {[%emt 0:00:41]} 38. g3 {[%emt 0:
00:00]} Ne6 {[%emt 0:00:44]} 39. f5 {[%emt 0:00:37]} Nd4 {[%emt 0:00:49]} 40.
fxg6 {[%emt 0:00:29]} fxg6 {[%emt 0:00:17]} 41. Kg2 {[%emt 0:30:07]} Nf5 {
[%emt 0:30:34]} 42. Bf4 {[%emt 0:02:06]} Be5 {[%emt 0:01:19]} 43. Qd2 {[%emt 0:
00:00]} Bxf4 {[%emt 0:00:41]} 44. Qxf4 {[%emt 0:00:05]} Qe2+ {[%emt 0:00:39]}
45. Kh3 {[%emt 0:00:27]} Qe3 {[%emt 0:01:51]} 46. Qb8 {[%emt 0:00:40]} h4 {
[%emt 0:00:00]} 47. Qxa7+ {[%emt 0:00:00]} Kh6 {[%emt 0:00:00]} 48. Qb8 {
[%emt 0:00:00]} hxg3 {[%emt 0:00:00]} 49. Qf8+ {[%emt 0:00:00]} Kg5 {[%emt 0:
00:00]} 50. Qd8+ {[%emt 0:00:00]} Qe7 {[%emt 0:00:00]} 51. Qxe7+ {[%emt 0:00:
00]} Nxe7 {[%emt 0:00:00]} 52. Bb7 {[%emt 0:00:02]} Kf4 {[%emt 0:00:00]} 53. a3
{[%emt 0:00:01]} Nf5 {[%emt 0:00:00]} 54. b4 {[%emt 0:01:09]} Ne3 {[%emt 0:00:
00]} 55. bxc5 {[%emt 0:00:58]} bxc5 {[%emt 0:00:00]} 56. a4 {[%emt 0:13:53]}
Nxc4 {[%emt 0:00:00]} 57. Ba6 {[%emt 0:01:22]} Ne3 {[%emt 0:00:00]} 58. Bd3 {
[%emt 0:01:59]} g5 {[%emt 0:00:00]} 59. Be2 {[%emt 0:01:31]} g4+ {[%emt 0:00:
00]} 60. Bxg4 {[%emt 0:00:37]} g2 {[%emt 0:02:03]} 61. Kh2 {[%emt 0:00:03]}
Kxg4 {[%emt 0:00:17]} 62. a5 {[%emt 0:00:12]} Kf3 {[%emt 0:00:22]} 63. Kg1 {
[%emt 0:00:09]} Nd5 {[%emt 0:00:47]} 64. a6 {[%emt 0:00:10]} c4 {[%emt 0:00:43]
} 65. a7 {[%emt 0:00:13]} Nc7 {[%emt 0:01:06]} 66. a8=R {[%emt 0:00:54]} Nxa8 {
[%emt 0:00:00]} 67. Kh2 {[%emt 0:00:02]} Kf2 {[%emt 0:00:00]} 0-1

[Event "44th Chess Olympiad Open 2022"]
[Site "Chennai"]
[Date "2022.08.05"]
[Round "7.56"]
[White "Al Kathiri, Mana"]
[Black "Lutuima, Amaro"]
[Result "0-1"]
[WhiteElo "1598"]
[BlackElo "2048"]
[Annotator "NA RC"]
[PlyCount "126"]
[EventDate "2022.??.??"]
[TimeControl "60"]

1. d4 {[%emt 0:00:04]} Nf6 {[%emt 0:00:45]} 2. Nf3 {[%emt 0:00:07]} e6 {
[%emt 0:00:37]} 3. Bf4 {[%emt 0:00:22]} d5 {[%emt 0:00:30]} 4. Nbd2 {[%emt 0:
00:00]} c5 {[%emt 0:00:22]} 5. e3 {[%emt 0:00:14]} cxd4 {[%emt 0:00:19]} 6.
exd4 {[%emt 0:00:22]} Bd6 {[%emt 0:00:14]} 7. Bg5 {[%emt 0:01:20]} Qb6 {
[%emt 0:00:49]} 8. Rb1 {[%emt 0:09:01]} Ne4 {[%emt 0:00:32]} 9. Be3 {[%emt 0:
00:00]} f5 {[%emt 0:01:02]} 10. Nxe4 {[%emt 0:07:24]} dxe4 {[%emt 0:00:51]} 11.
Ne5 {[%emt 0:00:37]} Bxe5 {[%emt 0:00:40]} 12. dxe5 {[%emt 0:00:06]} Qa5+ {
[%emt 0:00:04]} 13. Bd2 {[%emt 0:00:28]} Qxe5 {[%emt 0:01:18]} 14. Bc3 {
[%emt 0:01:41]} Qc7 {[%emt 0:00:34]} 15. Bb4 {[%emt 0:07:08]} Nc6 {[%emt 0:00:
00]} 16. Bc5 {[%emt 0:04:38]} Kf7 {[%emt 0:03:49]} 17. Qh5+ {[%emt 0:03:38]} g6
{[%emt 0:00:16]} 18. Qh6 {[%emt 0:01:53]} Qe5 {[%emt 0:00:18]} 19. Be3 {
[%emt 0:01:57]} Nb4 {[%emt 0:01:51]} 20. c3 {[%emt 0:14:46]} Nc2+ {[%emt 0:00:
00]} 21. Kd2 {[%emt 0:02:45]} Nxe3 {[%emt 0:00:29]} 22. fxe3 {[%emt 0:00:00]}
Rd8+ {[%emt 0:00:49]} 23. Kc2 {[%emt 0:01:02]} Kg8 {[%emt 0:02:43]} 24. h4 {
[%emt 0:01:42]} Bd7 {[%emt 0:01:08]} 25. h5 {[%emt 0:00:33]} Rac8 {[%emt 0:00:
00]} 26. Rc1 {[%emt 0:03:37]} Be8 {[%emt 0:00:52]} 27. hxg6 {[%emt 0:00:54]}
Bxg6 {[%emt 0:00:02]} 28. Be2 {[%emt 0:04:26]} b5 {[%emt 0:03:29]} 29. Rcd1 {
[%emt 0:06:32]} b4 {[%emt 0:02:41]} 30. Qg5 {[%emt 0:04:24]} Rxd1 {[%emt 0:00:
00]} 31. Rxd1 {[%emt 0:00:21]} Qc7 {[%emt 0:06:52]} 32. Qf6 {[%emt 0:03:11]}
bxc3 {[%emt 0:00:12]} 33. b3 {[%emt 0:01:25]} Qf7 {[%emt 0:01:19]} 34. Qe5 {
[%emt 0:00:34]} Qe7 {[%emt 0:01:30]} 35. Bc4 {[%emt 0:01:33]} Bf7 {[%emt 0:00:
00]} 36. g4 {[%emt 0:03:21]} Qa3 {[%emt 0:02:28]} 37. Kxc3 {[%emt 0:01:24]} Qf8
{[%emt 0:05:34]} 38. gxf5 {[%emt 0:01:02]} Rxc4+ {[%emt 0:04:18]} 39. Kxc4 {
[%emt 0:06:57]} Qc8+ {[%emt 0:04:54]} 40. Kb4 {[%emt 0:01:41]} exf5 {[%emt 0:
00:00]} 41. Qf6 {[%emt 0:31:41]} Qf8+ {[%emt 0:30:15]} 42. Rd6 {[%emt 0:01:28]}
Bg6 {[%emt 0:00:26]} 43. Qd4 {[%emt 0:02:50]} h5 {[%emt 0:02:43]} 44. Ka4 {
[%emt 0:00:00]} Qg7 {[%emt 0:00:00]} 45. Qd5+ {[%emt 0:00:00]} Kh7 {[%emt 0:00:
00]} 46. Rd7 {[%emt 0:00:00]} Be8 {[%emt 0:00:00]} 47. Qxf5+ {[%emt 0:00:00]}
Kh8 {[%emt 0:00:00]} 48. Qxe4 {[%emt 0:00:00]} Qxd7+ {[%emt 0:00:00]} 49. Ka3 {
[%emt 0:00:00]} Qd6+ {[%emt 0:00:00]} 50. Kb2 {[%emt 0:00:00]} Qf6+ {[%emt 0:
00:00]} 51. Ka3 {[%emt 0:00:00]} Bf7 {[%emt 0:00:00]} 52. Qa8+ {[%emt 0:00:00]}
Kg7 {[%emt 0:00:00]} 53. Qg2+ {[%emt 0:00:00]} Qg6 {[%emt 0:00:00]} 54. Qh2 {
[%emt 0:00:00]} Qa6+ {[%emt 0:00:00]} 55. Kb2 {[%emt 0:00:00]} Qf6+ {[%emt 0:
00:00]} 56. Ka3 {[%emt 0:00:00]} h4 {[%emt 0:00:00]} 57. e4 {[%emt 0:00:00]}
Qe7+ {[%emt 0:00:00]} 58. Kb2 {[%emt 0:00:00]} Qxe4 {[%emt 0:00:00]} 59. Qg1+ {
[%emt 0:00:00]} Qg6 {[%emt 0:00:00]} 60. Qxa7 {[%emt 0:00:00]} h3 {[%emt 0:00:
00]} 61. Ka3 {[%emt 0:00:00]} Qd6+ {[%emt 0:00:00]} 62. b4 {[%emt 0:00:00]} h2
{[%emt 0:00:00]} 63. Qf2 {[%emt 0:00:00]} Qa6+ {[%emt 0:00:00]} 0-1

[Event "44th Chess Olympiad Open 2022"]
[Site "Chennai"]
[Date "2022.08.05"]
[Round "7.58"]
[White "Khoder, Akram"]
[Black "Coulibaly, Abdoulaye"]
[Result "1-0"]
[WhiteElo "2038"]
[BlackElo "1936"]
[Annotator "NA RC"]
[PlyCount "83"]
[EventDate "2022.??.??"]
[TimeControl "60"]

1. d4 {[%emt 0:00:05]} d5 {[%emt 0:00:10]} 2. c4 {[%emt 0:00:06]} c6 {[%emt 0:
00:00]} 3. Nf3 {[%emt 0:00:04]} Nf6 {[%emt 0:00:25]} 4. Qc2 {[%emt 0:00:09]}
Bg4 {[%emt 0:02:15]} 5. Ne5 {[%emt 0:00:07]} Bh5 {[%emt 0:00:25]} 6. cxd5 {
[%emt 0:01:16]} Qxd5 {[%emt 0:01:50]} 7. e3 {[%emt 0:00:34]} e6 {[%emt 0:00:32]
} 8. Bd2 {[%emt 0:02:29]} Bg6 {[%emt 0:03:55]} 9. Nxg6 {[%emt 0:00:31]} hxg6 {
[%emt 0:00:18]} 10. Nc3 {[%emt 0:00:12]} Qf5 {[%emt 0:01:57]} 11. e4 {[%emt 0:
00:00]} Qa5 {[%emt 0:02:22]} 12. Bd3 {[%emt 0:01:46]} Qc7 {[%emt 0:02:06]} 13.
h3 {[%emt 0:00:24]} Nbd7 {[%emt 0:00:25]} 14. Rc1 {[%emt 0:05:04]} Nb6 {
[%emt 0:02:06]} 15. Ne2 {[%emt 0:07:06]} Be7 {[%emt 0:01:24]} 16. O-O {[%emt 0:
00:00]} O-O-O {[%emt 0:09:04]} 17. Bf4 {[%emt 0:00:14]} Qd7 {[%emt 0:00:30]}
18. Qb3 {[%emt 0:04:14]} Nh5 {[%emt 0:03:51]} 19. Rxc6+ {[%emt 0:02:31]} Qxc6 {
[%emt 0:00:44]} 20. Rc1 {[%emt 0:00:06]} Nxf4 {[%emt 0:00:47]} 21. Rxc6+ {
[%emt 0:00:10]} bxc6 {[%emt 0:00:11]} 22. Nxf4 {[%emt 0:00:08]} Rxd4 {[%emt 0:
00:00]} 23. Qc3 {[%emt 0:00:23]} c5 {[%emt 0:05:16]} 24. Ne2 {[%emt 0:00:26]}
Rd7 {[%emt 0:00:52]} 25. Qxg7 {[%emt 0:02:10]} Rhd8 {[%emt 0:01:17]} 26. Ba6+ {
[%emt 0:00:24]} Kb8 {[%emt 0:00:27]} 27. Qxf7 {[%emt 0:02:07]} Rf8 {[%emt 0:00:
00]} 28. Qxe6 {[%emt 0:00:25]} Rd1+ {[%emt 0:00:46]} 29. Kh2 {[%emt 0:00:07]}
Bd6+ {[%emt 0:00:30]} 30. e5 {[%emt 0:00:15]} Bc7 {[%emt 0:00:33]} 31. f4 {
[%emt 0:00:13]} Rd7 {[%emt 0:02:18]} 32. Qc6 {[%emt 0:00:14]} Bd8 {[%emt 0:00:
00]} 33. Qxc5 {[%emt 0:00:55]} Be7 {[%emt 0:00:17]} 34. Qc6 {[%emt 0:00:21]} g5
{[%emt 0:00:11]} 35. a4 {[%emt 0:01:48]} gxf4 {[%emt 0:00:57]} 36. a5 {[%emt 0:
00:00]} Rc7 {[%emt 0:00:10]} 37. Qe4 {[%emt 0:00:08]} Nd7 {[%emt 0:01:06]} 38.
Nxf4 {[%emt 0:03:10]} Nc5 {[%emt 0:00:35]} 39. Qb4+ {[%emt 0:00:12]} Ka8 {
[%emt 0:00:49]} 40. Nd5 {[%emt 0:00:10]} Nxa6 {[%emt 0:00:36]} 41. Nxc7+ {
[%emt 0:30:03]} Nxc7 {[%emt 0:30:02]} 42. Qxe7 {[%emt 0:00:07]} 1-0

[Event "44th Chess Olympiad Open 2022"]
[Site "Chennai"]
[Date "2022.08.05"]
[Round "7.59"]
[White "Pleasants, Allan J"]
[Black "Boidiya, Sidi"]
[Result "0-1"]
[WhiteElo "2024"]
[BlackElo "1997"]
[Annotator "NA RC"]
[PlyCount "64"]
[EventDate "2022.??.??"]
[TimeControl "60"]

1. Nf3 {[%emt 0:00:04]} d5 {[%emt 0:00:06]} 2. d4 {[%emt 0:00:41]} Nf6 {
[%emt 0:00:27]} 3. e3 {[%emt 0:00:10]} e6 {[%emt 0:00:05]} 4. Bd3 {[%emt 0:00:
00]} Nbd7 {[%emt 0:00:23]} 5. Nbd2 {[%emt 0:05:00]} c5 {[%emt 0:00:55]} 6. c3 {
[%emt 0:05:20]} Bd6 {[%emt 0:01:45]} 7. Qe2 {[%emt 0:02:31]} cxd4 {[%emt 0:00:
00]} 8. exd4 {[%emt 0:07:42]} Qc7 {[%emt 0:00:39]} 9. O-O {[%emt 0:05:01]} O-O
{[%emt 0:00:38]} 10. Re1 {[%emt 0:01:30]} b6 {[%emt 0:02:44]} 11. Ne5 {[%emt 0:
00:00]} Bb7 {[%emt 0:00:09]} 12. f4 {[%emt 0:05:46]} Rfe8 {[%emt 0:00:24]} 13.
Ndf3 {[%emt 0:01:09]} Nf8 {[%emt 0:02:33]} 14. Ng5 {[%emt 0:08:46]} Re7 {
[%emt 0:00:45]} 15. g4 {[%emt 0:11:26]} h6 {[%emt 0:01:13]} 16. Ngf3 {[%emt 0:
00:00]} Ne4 {[%emt 0:03:29]} 17. Kh1 {[%emt 0:02:21]} f6 {[%emt 0:02:09]} 18.
g5 {[%emt 0:13:03]} hxg5 {[%emt 0:01:26]} 19. Rg1 {[%emt 0:01:13]} Ree8 {
[%emt 0:05:11]} 20. Be3 {[%emt 0:10:26]} fxe5 {[%emt 0:01:55]} 21. fxe5 {
[%emt 0:00:05]} Be7 {[%emt 0:00:35]} 22. Nxg5 {[%emt 0:03:06]} Bxg5 {[%emt 0:
00:00]} 23. Bxg5 {[%emt 0:00:07]} Nh7 {[%emt 0:00:13]} 24. Be3 {[%emt 0:03:54]}
Rf8 {[%emt 0:02:04]} 25. Rg6 {[%emt 0:01:26]} Rf7 {[%emt 0:05:20]} 26. Rag1 {
[%emt 0:01:05]} Nf8 {[%emt 0:01:53]} 27. Rh6 {[%emt 0:01:28]} Rf5 {[%emt 0:00:
00]} 28. Qg4 {[%emt 0:00:45]} Rg5 {[%emt 0:00:23]} 29. Rh8+ {[%emt 0:01:38]}
Kxh8 {[%emt 0:02:37]} 30. Qh4+ {[%emt 0:00:05]} Nh7 {[%emt 0:02:00]} 31. Bxg5 {
[%emt 0:02:43]} Rf8 {[%emt 0:00:29]} 32. Be3 {[%emt 0:00:58]} Rf3 {[%emt 0:00:
00]} 0-1

[Event "44th Chess Olympiad Open 2022"]
[Site "Chennai"]
[Date "2022.08.05"]
[Round "7.60"]
[White "Chekh Adm Khedr, Aram"]
[Black "Yan, Austin K"]
[Result "1/2-1/2"]
[WhiteElo "2147"]
[BlackElo "1568"]
[Annotator "NA RC"]
[PlyCount "114"]
[EventDate "2022.??.??"]
[TimeControl "60"]

1. e4 {[%emt 0:00:04]} c5 {[%emt 0:00:22]} 2. b3 {[%emt 0:00:47]} d5 {[%emt 0:
00:00]} 3. exd5 {[%emt 0:02:28]} Qxd5 {[%emt 0:00:13]} 4. Nc3 {[%emt 0:01:19]}
Qd8 {[%emt 0:01:12]} 5. Bc4 {[%emt 0:01:11]} Nf6 {[%emt 0:01:08]} 6. Nf3 {
[%emt 0:00:21]} a6 {[%emt 0:01:55]} 7. a4 {[%emt 0:00:53]} Nc6 {[%emt 0:00:45]}
8. Bb2 {[%emt 0:06:59]} Bg4 {[%emt 0:02:34]} 9. h3 {[%emt 0:10:35]} Bh5 {
[%emt 0:02:54]} 10. g4 {[%emt 0:00:09]} Bg6 {[%emt 0:00:40]} 11. d3 {[%emt 0:
00:00]} e6 {[%emt 0:04:42]} 12. Qd2 {[%emt 0:06:22]} Bd6 {[%emt 0:16:04]} 13.
Rg1 {[%emt 0:10:55]} Qc7 {[%emt 0:04:00]} 14. Ne2 {[%emt 0:10:10]} O-O-O {
[%emt 0:18:43]} 15. h4 {[%emt 0:10:06]} Ne5 {[%emt 0:11:57]} 16. Nxe5 {[%emt 0:
00:00]} Bxe5 {[%emt 0:02:00]} 17. Bxe5 {[%emt 0:00:04]} Qxe5 {[%emt 0:00:02]}
18. Qc3 {[%emt 0:00:08]} Qxc3+ {[%emt 0:01:12]} 19. Nxc3 {[%emt 0:00:01]} h5 {
[%emt 0:06:07]} 20. g5 {[%emt 0:00:44]} Nd7 {[%emt 0:07:59]} 21. f4 {[%emt 0:
00:00]} Nb8 {[%emt 0:02:52]} 22. O-O-O {[%emt 0:12:01]} Kc7 {[%emt 0:00:42]}
23. Ne4 {[%emt 0:01:21]} b6 {[%emt 0:01:36]} 24. Nd2 {[%emt 0:02:22]} Bf5 {
[%emt 0:01:54]} 25. Rde1 {[%emt 0:00:32]} Rhe8 {[%emt 0:01:51]} 26. Nf3 {
[%emt 0:01:30]} f6 {[%emt 0:00:18]} 27. gxf6 {[%emt 0:01:10]} gxf6 {[%emt 0:00:
00]} 28. Rg7+ {[%emt 0:00:08]} Rd7 {[%emt 0:02:06]} 29. Rxd7+ {[%emt 0:00:34]}
Kxd7 {[%emt 0:00:02]} 30. c3 {[%emt 0:01:36]} Rg8 {[%emt 0:00:23]} 31. Rg1 {
[%emt 0:00:33]} Rxg1+ {[%emt 0:01:53]} 32. Nxg1 {[%emt 0:00:01]} Bg4 {[%emt 0:
00:00]} 33. Kd2 {[%emt 0:00:32]} Kc6 {[%emt 0:00:26]} 34. b4 {[%emt 0:01:25]}
b5 {[%emt 0:00:21]} 35. Bb3 {[%emt 0:00:08]} Nd7 {[%emt 0:01:07]} 36. axb5+ {
[%emt 0:00:31]} axb5 {[%emt 0:00:11]} 37. Ke3 {[%emt 0:01:18]} Nf8 {[%emt 0:00:
00]} 38. Nf3 {[%emt 0:00:35]} Ng6 {[%emt 0:00:39]} 39. bxc5 {[%emt 0:00:58]}
Kxc5 {[%emt 0:00:46]} 40. Nh2 {[%emt 0:00:56]} Nxh4 {[%emt 0:01:39]} 41. Nxg4 {
[%emt 0:30:06]} hxg4 {[%emt 0:30:08]} 42. Bxe6 {[%emt 0:00:06]} f5 {[%emt 0:00:
00]} 43. Kf2 {[%emt 0:00:00]} Kd6 {[%emt 0:00:00]} 44. Bc8 {[%emt 0:00:00]} Kc7
{[%emt 0:00:00]} 45. Be6 {[%emt 0:00:00]} Kd6 {[%emt 0:00:00]} 46. Bf7 {
[%emt 0:00:00]} Nf3 {[%emt 0:00:00]} 47. Bg6 {[%emt 0:00:00]} b4 {[%emt 0:00:
00]} 48. cxb4 {[%emt 0:00:00]} Nd4 {[%emt 0:00:00]} 49. Be8 {[%emt 0:00:00]}
Nc2 {[%emt 0:00:00]} 50. b5 {[%emt 0:00:00]} Kc5 {[%emt 0:00:00]} 51. Bd7 {
[%emt 0:00:00]} Nd4 {[%emt 0:00:00]} 52. Ke3 {[%emt 0:00:00]} Nc2+ {[%emt 0:00:
00]} 53. Ke2 {[%emt 0:00:00]} Nd4+ {[%emt 0:00:00]} 54. Kf2 {[%emt 0:00:00]}
Kb6 {[%emt 0:00:00]} 55. Ke3 {[%emt 0:00:00]} g3 {[%emt 0:00:27]} 56. Bc6 {
[%emt 0:02:41]} Nxc6 {[%emt 0:00:22]} 57. bxc6 {[%emt 0:00:05]} Kxc6 {[%emt 0:
00:00]} 1/2-1/2